bitfinex/quotes_BTCUSD_20220105
["timestamp","ask_amount","ask_price","bid_price","bid_amount"]
[1641341655654,0.371663,46034.0,46032.0,0.001203]
[1641341656050,0.371663,46034.0,46033.0,0.11677]
[1641341656252,0.0003,46034.0,46033.0,0.08708]
[1641341656653,0.0003,46034.0,46033.0,0.09008]
[1641341657254,0.0003,46034.0,46033.0,0.003]
[1641341657916,0.0003,46034.0,46032.0,0.23775942]
[1641341658116,0.0003,46034.0,46033.0,0.68677]
[1641341658317,0.0003,46034.0,46033.0,0.11677]
[1641341658517,0.0003,46034.0,46033.0,0.003]
[1641341659918,0.0003,46034.0,46025.0,0.26611367]
[1641341660717,0.0233,46034.0,46025.0,0.26711367]
[1641341660920,0.0233,46034.0,46025.0,0.56031889]
[1641341661118,0.24461368,46034.0,46025.0,0.56031889]
[1641341661319,0.24461368,46034.0,46025.0,0.61031889]
[1641341661550,0.24461368,46034.0,46025.0,0.34420522]
[1641341661752,0.0233,46034.0,46025.0,0.34420522]
[1641341661956,0.0003,46034.0,46025.0,0.33820522]
[1641341662148,0.0003,46034.0,46025.0,0.045]
[1641341662350,0.054329,46032.0,46025.0,0.045]
[1641341662549,0.0003,46034.0,46025.0,0.002]
[1641341662550,0.1,46027.0,46025.0,0.002]
[1641341662753,0.33151033,46026.0,46025.0,0.002]
[1641341663150,0.38151033,46026.0,46025.0,0.002]
[1641341663550,0.148037,46026.0,46025.0,0.002]
[1641341663751,0.148037,46026.0,46021.0,0.45465815]
[1641341664255,0.148037,46026.0,46020.0,0.11518825]
[1641341664453,0.202373,46026.0,46020.0,0.11518825]
[1641341664652,0.054338,46024.0,46021.0,0.003]
[1641341664852,0.0437,46023.0,46021.0,0.003]
[1641341665917,0.0437,46023.0,46020.0,0.47311434]
[1641341666714,0.0457,46023.0,46020.0,0.47711434]
[1641341667816,0.0437,46023.0,46020.0,0.47311434]
[1641341668017,0.0437,46023.0,46020.0,0.06518825]
[1641341668418,0.0437,46023.0,46016.0,0.65195]
[1641341668617,0.0497,46023.0,46016.0,0.65195]
[1641341669058,0.36410136,46019.0,46016.0,0.65195]
[1641341669256,0.0937,46018.0,46016.0,0.65195]
[1641341670058,0.148048,46018.0,46016.0,0.65195]
[1641341670658,0.152048,46018.0,46016.0,0.91601995]
[1641341670859,0.0977,46018.0,46016.0,0.91601995]
[1641341671058,0.0977,46018.0,46016.0,0.65295]
[1641341671258,0.152044,46018.0,46016.0,0.65295]
[1641341671457,0.09743813,46018.0,46016.0,0.65295]
[1641341671861,0.09343813,46018.0,46016.0,0.65195]
[1641341672260,0.14778213,46018.0,46016.0,0.65195]
[1641341672660,0.15378213,46018.0,46016.0,0.65295]
[1641341673907,6.048e-05,46017.0,46016.0,0.65195]
[1641341674109,0.04376048,46017.0,46016.0,0.65195]
[1641341674715,0.04776048,46017.0,46016.0,0.65295]
[1641341675909,0.04376048,46017.0,46016.0,0.65195]
[1641341676653,0.04776048,46017.0,46016.0,0.65195]
[1641341677454,0.04776048,46017.0,46016.0,1.10706063]
[1641341677853,0.04376048,46017.0,46016.0,1.10706063]
[1641341678552,0.04676048,46017.0,46016.0,1.11006063]
[1641341678755,0.00306048,46017.0,46016.0,1.11006063]
[1641341678956,0.00306048,46017.0,46016.0,3.72802435]
[1641341679154,0.00306048,46017.0,46016.0,3.77802435]
[1641341679956,6.048e-05,46017.0,46016.0,3.77502435]
[1641341680708,6.048e-05,46017.0,46016.0,3.78302435]
[1641341682709,0.05235069,46028.0,46023.0,0.29722097]
[1641341682911,0.054331,46028.0,46023.0,0.29722097]
[1641341683112,0.054331,46028.0,46023.0,0.34722097]
[1641341683512,0.05433,46030.0,46023.0,0.34722097]
[1641341683712,0.054328,46032.0,46023.0,0.34722097]
[1641341684053,0.108655,46032.0,46027.0,0.27645643]
[1641341684451,0.054328,46031.0,46027.0,0.27645643]
[1641341684651,0.114327,46032.0,46023.0,0.40154745]
[1641341684855,0.054329,46030.0,46023.0,0.34722097]
[1641341685252,0.06,46032.0,46023.0,0.34722097]
[1641341685452,0.054328,46031.0,46023.0,0.40154642]
[1641341685651,0.054328,46031.0,46023.0,0.64616083]
[1641341685854,0.108658,46031.0,46023.0,0.64616083]
[1641341686654,0.111658,46031.0,46023.0,0.64816083]
[1641341687154,0.054329,46030.0,46023.0,0.34922097]
[1641341687359,0.054331,46028.0,46023.0,0.34922097]
[1641341687574,0.049331,46028.0,46023.0,0.34922097]
[1641341688001,0.05222919,46028.0,46023.0,0.34722097]
[1641341688400,0.05222919,46028.0,46023.0,0.05]
[1641341688600,0.05222919,46028.0,46023.0,0.004]
[1641341688601,0.10856019,46028.0,46023.0,0.004]
[1641341688803,0.054334,46026.0,46023.0,0.004]
[1641341689002,0.054337,46025.0,46023.0,0.004]
[1641341689802,0.054337,46025.0,46021.0,0.06518686]
[1641341690008,0.054341,46024.0,46021.0,0.06518686]
[1641341690204,0.0437,46023.0,46021.0,0.06518686]
[1641341690904,0.113684,46024.0,46023.0,0.0063]
[1641341691104,0.211724,46024.0,46023.0,0.0063]
[1641341691305,0.568333,46024.0,46023.0,0.0063]
[1641341691549,0.668333,46024.0,46023.0,0.0063]
[1641341691750,0.568333,46024.0,46023.0,0.0063]
[1641341691951,0.563333,46024.0,46023.0,0.0063]
[1641341692555,0.9950587,46024.0,46023.0,0.0063]
[1641341692754,1.0020587,46024.0,46023.0,0.0063]
[1641341693152,2.1550587,46024.0,46023.0,0.0063]
[1641341693952,2.1480587,46024.0,46023.0,0.0063]
[1641341694751,2.1510587,46024.0,46023.0,0.0063]
[1641341695605,2.2510587,46024.0,46008.0,8.99750156]
[1641341695805,0.054353,46013.0,46008.0,8.99750156]
[1641341696007,0.29768774,46018.0,46008.0,8.99750156]
[1641341696008,0.0437,46012.0,46008.0,8.99750156]
[1641341696206,0.0437,46011.0,46008.0,8.99750156]
[1641341696609,0.0447,46011.0,46008.0,9.00450156]
[1641341697108,0.099056,46011.0,46008.0,9.22450156]
[1641341697912,0.054353,46010.0,46008.0,9.21750156]
[1641341698107,0.0437,46009.0,46008.0,9.21750156]
[1641341698707,0.0447,46009.0,46008.0,9.22150156]
[1641341699160,0.149054,46009.0,46008.0,9.22150156]
[1641341699955,0.148054,46009.0,46008.0,9.21750156]
[1641341700756,0.152054,46009.0,46008.0,9.21750156]
[1641341701461,1.305054,46009.0,46008.0,9.21750156]
[1641341701756,0.252054,46009.0,46008.0,9.21750156]
[1641341701957,0.248054,46009.0,46008.0,9.21750156]
[1641341702804,0.15290876,46009.0,46008.0,9.21750156]
[1641341703211,1.30590876,46009.0,46008.0,9.21750156]
[1641341703608,1.40590876,46009.0,46008.0,9.21750156]
[1641341703808,2.05457461,46009.0,46008.0,8.78250456]
[1641341704009,3.00057461,46009.0,46008.0,8.68137079]
[1641341704208,3.45616007,46009.0,46008.0,8.68137079]
[1641341704406,3.76284225,46009.0,46008.0,7.3288169]
[1641341704606,3.72756739,46009.0,46008.0,7.3288169]
[1641341704808,3.74278739,46009.0,46008.0,4.20059719]
[1641341705007,3.68843339,46009.0,46008.0,3.50628706]
[1641341705509,3.68843339,46009.0,46008.0,2.20120606]
[1641341705711,4.68843339,46009.0,46008.0,2.20120606]
[1641341705908,3.78543339,46009.0,46008.0,1.76617506]
[1641341706108,4.20694239,46009.0,46008.0,1.76617506]
[1641341706553,4.20694239,46009.0,46008.0,1.33114206]
[1641341706754,4.20994239,46009.0,46008.0,1.33114206]
[1641341706954,3.97977429,46009.0,46008.0,0.89611906]
[1641341707155,3.96485429,46009.0,46008.0,0.89611906]
[1641341707355,3.76485429,46009.0,46008.0,0.89611906]
[1641341707554,3.67866429,46009.0,46008.0,0.89611906]
[1641341707954,3.67566429,46009.0,46008.0,0.89611906]
[1641341708154,3.66969736,46009.0,46008.0,0.89611906]
[1641341708654,3.67269736,46009.0,46008.0,0.89611906]
[1641341708854,2.00013968,46009.0,46008.0,0.89611906]
[1641341709058,0.95383968,46009.0,46008.0,1.19364583]
[1641341709258,0.01412762,46009.0,46008.0,1.19364583]
[1641341709453,0.02440048,46009.0,46008.0,1.19364583]
[1641341710056,0.02140048,46009.0,46008.0,1.19364583]
[1641341710707,0.02640048,46009.0,46008.0,1.60979385]
[1641341711706,0.02640048,46009.0,46008.0,2.22979385]
[1641341711905,0.02140048,46009.0,46008.0,2.22979385]
[1641341712110,0.02140048,46009.0,46008.0,2.61952768]
[1641341712708,0.02140048,46009.0,46008.0,2.00252768]
[1641341713109,0.00286185,46013.0,46009.0,1.31005052]
[1641341714759,0.01586185,46013.0,46009.0,1.31205052]
[1641341714960,0.01586185,46013.0,46012.0,0.001241]
[1641341715158,0.01586185,46013.0,46012.0,1.618094]
[1641341715765,0.05904,46028.0,46012.0,1.618094]
[1641341715766,0.9267,46031.0,46028.0,0.26204579]
[1641341715960,0.410942,46030.0,46029.0,0.85911517]
[1641341716165,0.044,46034.0,46029.0,0.38911517]
[1641341716359,0.346129,46033.0,46029.0,0.38911517]
[1641341716562,0.0003,46034.0,46029.0,0.38911517]
[1641341717659,0.054329,46033.0,46029.0,0.38911517]
[1641341718605,0.0437,46032.0,46029.0,0.38911517]
[1641341718817,0.26476371,46040.0,46032.0,0.49]
[1641341719008,0.0437,46036.0,46032.0,0.49]
[1641341719209,0.0437,46036.0,46031.0,0.31537998]
[1641341719907,0.0437,46036.0,46031.0,0.63873512]
[1641341720110,0.0437,46036.0,46032.0,0.27951038]
[1641341720709,0.0437,46036.0,46032.0,0.28051038]
[1641341720911,0.04656242,46036.0,46032.0,0.001]
[1641341721110,0.04656242,46036.0,46029.0,0.34011517]
[1641341721562,0.00286242,46036.0,46029.0,0.34011517]
[1641341721761,0.05718842,46036.0,46024.0,0.10991754]
[1641341721963,0.05718842,46036.0,46024.0,0.00127612]
[1641341721964,1.4031201,46034.0,46024.0,0.00127612]
[1641341722163,1.4031201,46034.0,46020.0,0.30387718]
[1641341722164,0.0437,46033.0,46019.0,0.30593103]
[1641341722460,0.0437,46033.0,46016.0,0.24635301]
[1641341722461,0.054339,46029.0,46016.0,0.24635301]
[1641341722661,0.098039,46029.0,46016.0,0.24635301]
[1641341722960,0.098039,46029.0,46016.0,0.00121253]
[1641341723162,0.098039,46029.0,46022.0,0.33591289]
[1641341723562,0.054336,46027.0,46022.0,0.33591289]
[1641341723865,0.054336,46027.0,46026.0,0.30266257]
[1641341724062,0.014336,46027.0,46026.0,0.30266257]
[1641341724661,0.0937,46029.0,46026.0,1.01594388]
[1641341724862,0.0437,46029.0,46026.0,1.01694388]
[1641341725060,0.0937,46029.0,46026.0,0.63694388]
[1641341725308,0.0937,46029.0,46026.0,0.30366257]
[1641341725907,0.0937,46029.0,46026.0,0.52366257]
[1641341726108,0.0937,46029.0,46026.0,0.52266257]
[1641341727208,0.01075073,46028.0,46026.0,0.52266257]
[1641341727809,0.01075073,46028.0,46026.0,0.22]
[1641341728811,0.01075073,46028.0,46026.0,0.221]
[1641341729258,0.01075073,46028.0,46026.0,0.47586998]
[1641341730056,0.01075073,46028.0,46026.0,0.47486998]
[1641341730856,0.01075073,46028.0,46026.0,0.47586998]
[1641341731860,0.01075073,46028.0,46027.0,1.227272]
[1641341732258,0.01075073,46028.0,46027.0,1.308742]
[1641341732456,0.01075073,46028.0,46027.0,1.708742]
[1641341732918,0.01075073,46029.0,46027.0,1.767057]
[1641341733217,0.01075073,46029.0,46028.0,1.7558218]
[1641341733419,0.01075073,46029.0,46028.0,1.8830938]
[1641341733917,0.01075073,46029.0,46028.0,1.9374078]
[1641341734818,0.01075073,46029.0,46028.0,1.9414078]
[1641341735620,0.01075073,46029.0,46028.0,1.9914078]
[1641341736020,0.0001,46030.0,46029.0,1.5]
[1641341736222,0.0003,46037.0,46033.0,0.05431124]
[1641341736422,0.0003,46037.0,46035.0,0.00122417]
[1641341736660,0.0003,46037.0,46036.0,1.627239]
[1641341737063,0.0002,46045.0,46036.0,1.627239]
[1641341737064,0.0003,46043.0,46036.0,1.627239]
[1641341737261,0.00209966,46044.0,46039.0,0.05430612]
[1641341737461,0.00209966,46044.0,46040.0,0.23337907]
[1641341737863,0.00209966,46044.0,46039.0,0.10861312]
[1641341738062,0.00209966,46044.0,46039.0,0.05430612]
[1641341738263,0.00209966,46044.0,46043.0,0.93063636]
[1641341738464,0.00209966,46044.0,46043.0,1.60731399]
[1641341738864,0.00209966,46044.0,46043.0,1.61031399]
[1641341739467,0.00209966,46044.0,46043.0,0.95031399]
[1641341739669,0.00209966,46044.0,46043.0,0.27363636]
[1641341740068,0.00209966,46044.0,46040.0,0.05430737]
[1641341740311,0.00209966,46044.0,46038.0,0.25679411]
[1641341740508,0.00209966,46044.0,46038.0,0.26219093]
[1641341740708,0.00209966,46044.0,46043.0,0.80336306]
[1641341741511,0.0001,46045.0,46044.0,1.5]
[1641341741812,0.0002,46046.0,46045.0,1.50121958]
[1641341742010,0.0002,46046.0,46045.0,1.62842058]
[1641341742414,0.0004,46051.0,46050.0,1.5008]
[1641341742415,0.0003,46051.0,46050.0,1.5008]
[1641341742614,0.0003,46051.0,46050.0,1.62798]
[1641341742810,0.0002,46055.0,46050.0,1.62298]
[1641341743011,0.0024,46059.0,46051.0,1.627174]
[1641341743210,0.0024,46059.0,46058.0,0.00128102]
[1641341743410,0.0024,46059.0,46058.0,1.96898988]
[1641341743810,0.0024,46059.0,46058.0,2.47776583]
[1641341744072,0.0024,46059.0,46058.0,2.47406508]
[1641341744866,0.0024,46059.0,46058.0,0.36471741]
[1641341745063,0.0024,46059.0,46058.0,0.08582]
[1641341745267,0.0024,46059.0,46058.0,0.003]
[1641341746164,0.0024,46059.0,46058.0,0.30486167]
[1641341746367,0.0024,46059.0,46058.0,1.21486167]
[1641341748019,0.01132064,46064.0,46059.0,0.32]
[1641341748415,0.0005,46065.0,46059.0,0.32]
[1641341748615,0.0005,46065.0,46060.0,0.42700933]
[1641341748916,0.0005,46065.0,46060.0,0.77955311]
[1641341749117,8.215e-05,46063.0,46060.0,0.77955311]
[1641341750021,0.0005,46065.0,46060.0,0.77955311]
[1641341750022,0.0002,46065.0,46064.0,0.02052785]
[1641341750226,0.0002,46065.0,46060.0,0.42700933]
[1641341750815,0.0002,46065.0,46060.0,0.42800933]
[1641341752061,0.0002,46065.0,46060.0,0.42700933]
[1641341752260,0.00013845,46066.0,46061.0,0.44]
[1641341752460,0.00013845,46066.0,46060.0,0.42700933]
[1641341752667,0.00013845,46066.0,46065.0,0.26670914]
[1641341753065,0.00013845,46066.0,46061.0,0.001]
[1641341753267,0.05429314,46065.0,46061.0,0.001]
[1641341753468,1.5108343,46062.0,46061.0,0.001]
[1641341753667,0.4515343,46062.0,46061.0,0.001]
[1641341753863,0.5515343,46062.0,46061.0,0.001]
[1641341754064,0.5015343,46062.0,46060.0,0.23531739]
[1641341754263,0.400301,46062.0,46060.0,0.6940638]
[1641341754466,0.0437,46062.0,46060.0,0.6940638]
[1641341754862,0.0547,46062.0,46060.0,0.6950638]
[1641341755064,0.011,46062.0,46060.0,0.6950638]
[1641341755519,0.011,46062.0,46060.0,0.7493518]
[1641341756317,0.00013845,46066.0,46060.0,0.7483518]
[1641341756518,0.00013845,46066.0,46063.0,0.27755424]
[1641341756919,0.02013845,46066.0,46060.0,0.7483518]
[1641341757319,0.02013845,46066.0,46060.0,0.6940638]
[1641341757521,0.1287192,46066.0,46060.0,0.6940638]
[1641341758119,0.00013845,46066.0,46060.0,0.6940638]
[1641341758920,0.00713845,46066.0,46060.0,0.6950638]
[1641341759962,7.597e-05,46065.0,46060.0,0.6950638]
[1641341760261,0.00015194,46065.0,46060.0,0.6950638]
[1641341760863,0.00894325,46065.0,46060.0,0.6960638]
[1641341761063,0.054293,46064.0,46060.0,0.6960638]
[1641341761265,0.00894325,46065.0,46060.0,0.6960638]
[1641341762263,0.00294325,46065.0,46060.0,0.6940638]
[1641341762465,0.00294325,46065.0,46064.0,1.09873603]
[1641341762822,0.00294325,46065.0,46064.0,1.18548603]
[1641341763125,0.00794325,46065.0,46064.0,1.95261203]
[1641341764321,0.00294325,46065.0,46064.0,1.95261203]
[1641341764921,0.00294325,46065.0,46064.0,1.95661203]
[1641341765923,0.00294325,46065.0,46064.0,0.981126]
[1641341766124,0.00294325,46065.0,46064.0,0.59]
[1641341766763,0.0003,46072.0,46064.0,0.59]
[1641341766964,0.00645589,46075.0,46068.0,0.31793406]
[1641341767165,0.108576,46072.0,46068.0,0.31793406]
[1641341767865,0.108576,46072.0,46068.0,0.71646344]
[1641341768067,0.00645589,46075.0,46068.0,0.71646344]
[1641341768273,0.054282,46073.0,46068.0,0.71646344]
[1641341768866,0.00645589,46075.0,46068.0,0.71646344]
[1641341769066,0.00645589,46075.0,46068.0,0.71746344]
[1641341769067,0.01,46073.0,46068.0,0.71746344]
[1641341770167,0.05428512,46073.0,46068.0,0.71646344]
[1641341770616,0.054284,46071.0,46068.0,0.71646344]
[1641341771518,0.06442314,46073.0,46069.0,0.054279]
[1641341771519,0.01013802,46073.0,46069.0,0.054279]
[1641341771917,0.01013802,46073.0,46070.0,0.00121746]
[1641341772318,0.00013802,46073.0,46068.0,0.71646344]
[1641341772520,0.152725,46078.0,46068.0,0.71646344]
[1641341772718,0.05428,46074.0,46073.0,0.29491183]
[1641341772919,0.05428,46074.0,46068.0,0.71746344]
[1641341773519,0.05428,46074.0,46068.0,0.001]
[1641341774065,0.054289,46070.0,46068.0,0.001]
[1641341774267,0.400301,46069.0,46068.0,0.001]
[1641341774665,0.500301,46069.0,46068.0,0.001]
[1641341774865,0.500301,46069.0,46060.0,0.05]
[1641341775068,0.054292,46065.0,46060.0,0.32896646]
[1641341775264,0.0437,46064.0,46060.0,0.32896646]
[1641341775465,0.0387,46063.0,46060.0,0.32896646]
[1641341775667,0.0437,46062.0,46060.0,0.05]
[1641341775871,0.0437,46061.0,46058.0,0.00128118]
[1641341776067,0.0437,46060.0,46058.0,0.00128118]
[1641341776267,0.0437,46059.0,46054.0,0.25859374]
[1641341776469,0.0437,46058.0,46054.0,0.25859374]
[1641341776668,0.0437,46058.0,46055.0,0.054294]
[1641341776868,0.0437,46058.0,46057.0,0.36801003]
[1641341777068,0.0437,46058.0,46057.0,0.97001003]
[1641341777268,0.0437,46073.0,46058.0,1.49]
[1641341777469,0.054283,46072.0,46069.0,0.30213825]
[1641341777669,0.1,46076.0,46069.0,0.30213825]
[1641341777919,0.24521891,46078.0,46069.0,0.30213825]
[1641341778118,0.19521891,46078.0,46071.0,0.26821461]
[1641341778319,0.14521891,46078.0,46071.0,0.26821461]
[1641341778520,0.19949291,46078.0,46071.0,0.26821461]
[1641341778917,0.19449291,46078.0,46071.0,0.26821461]
[1641341779318,0.356601,46077.0,46071.0,0.26821461]
[1641341779518,0.054279,46074.0,46071.0,0.26821461]
[1641341780218,0.044279,46074.0,46071.0,0.26821461]
[1641341781417,0.09856067,46074.0,46071.0,0.26821461]
[1641341781665,0.410884,46073.0,46064.0,0.00121031]
[1641341781867,0.108579,46069.0,46059.0,1.6502]
[1641341782066,0.25300491,46068.0,46058.0,0.31463165]
[1641341782266,0.05429072,46066.0,46058.0,0.31463165]
[1641341782467,0.054288,46066.0,46058.0,0.31463165]
[1641341782667,0.054288,46066.0,46064.0,0.30853584]
[1641341783066,0.054288,46066.0,46060.0,0.28775893]
[1641341783866,0.054288,46066.0,46059.0,0.05429]
[1641341784069,0.152287,46065.0,46064.0,8.945706]
[1641341784476,0.31088222,46065.0,46064.0,8.945706]
[1641341784667,0.46088222,46065.0,46064.0,8.945706]
[1641341785069,0.46388222,46065.0,46064.0,8.945706]
[1641341785312,0.355287,46065.0,46064.0,8.945706]
[1641341786319,0.352287,46065.0,46064.0,8.945706]
[1641341786714,0.352287,46065.0,46064.0,9.165706]
[1641341786913,0.252287,46065.0,46064.0,9.165706]
[1641341787113,0.256287,46065.0,46064.0,9.165706]
[1641341787515,0.156287,46065.0,46064.0,9.165706]
[1641341788315,0.152287,46065.0,46064.0,9.165706]
[1641341788921,0.0437,46065.0,46064.0,9.165706]
[1641341789162,0.0437,46065.0,46064.0,9.57657358]
[1641341789369,0.00272197,46067.0,46064.0,9.57657358]
[1641341790064,0.00272197,46067.0,46064.0,9.63085458]
[1641341790263,0.00272197,46067.0,46064.0,9.63085558]
[1641341790467,0.00272197,46067.0,46064.0,9.57657358]
[1641341790867,0.05428948,46066.0,46064.0,9.57657358]
[1641341791264,0.16287548,46066.0,46064.0,9.165706]
[1641341791467,0.054293,46065.0,46064.0,9.165706]
[1641341793512,0.00268794,46067.0,46064.0,9.165706]
[1641341794313,0.00268794,46067.0,46064.0,9.21999]
[1641341795111,0.00268794,46067.0,46064.0,9.22099]
[1641341796312,0.00268794,46067.0,46065.0,0.1401]
[1641341796770,0.05697394,46067.0,46065.0,0.1401]
[1641341797167,0.05697394,46067.0,46065.0,0.1411]
[1641341797366,0.054286,46067.0,46065.0,0.1411]
[1641341797769,0.052686,46067.0,46065.0,0.1411]
[1641341798368,0.052686,46067.0,46065.0,0.1401]
[1641341798568,0.097983,46069.0,46065.0,0.1401]
[1641341798770,0.097983,46069.0,46068.0,0.5966729]
[1641341799771,0.097983,46069.0,46068.0,0.29132075]
[1641341799971,0.097983,46069.0,46065.0,0.1401]
[1641341800925,0.10067137,46069.0,46065.0,0.1401]
[1641341801129,0.054289,46067.0,46065.0,0.46462599]
[1641341803528,0.04638837,46069.0,46065.0,0.46462599]
[1641341803529,0.054283,46068.0,46065.0,0.46462599]
[1641341803729,0.09638837,46069.0,46065.0,0.46462599]
[1641341803928,0.04638837,46069.0,46065.0,0.46462599]
[1641341804366,0.15496415,46069.0,46065.0,0.46462599]
[1641341804571,0.054291,46067.0,46065.0,0.46462599]
[1641341805366,0.10857963,46067.0,46065.0,0.46462599]
[1641341805567,0.05,46066.0,46065.0,0.46462599]
[1641341805766,0.10857963,46067.0,46065.0,0.1401]
[1641341805968,0.22573823,46066.0,46065.0,0.1401]
[1641341806168,0.26966044,46066.0,46065.0,0.1401]
[1641341806367,0.31966044,46066.0,46065.0,0.1401]
[1641341806566,0.41966044,46066.0,46065.0,0.1401]
[1641341806767,0.1937,46066.0,46065.0,0.1401]
[1641341807170,0.1977,46066.0,46065.0,0.1401]
[1641341807816,0.0977,46066.0,46065.0,0.1401]
[1641341808218,0.0477,46066.0,46065.0,0.1401]
[1641341808416,0.0437,46066.0,46065.0,0.1401]
[1641341809218,0.0437,46066.0,46065.0,0.37739817]
[1641341809418,0.054291,46067.0,46065.0,0.37739817]
[1641341809621,0.054291,46067.0,46066.0,1.13389774]
[1641341810421,0.004291,46067.0,46066.0,1.13389774]
[1641341810621,0.004291,46067.0,46066.0,0.61224811]
[1641341810824,0.004291,46067.0,46066.0,0.36835037]
[1641341811223,0.00268836,46068.0,46066.0,0.36835037]
[1641341811442,0.00268836,46068.0,46066.0,0.36750837]
[1641341811871,0.00268836,46068.0,46067.0,1.16614469]
[1641341812170,0.00268836,46068.0,46067.0,0.61846306]
[1641341812375,0.00268836,46068.0,46067.0,0.32614469]
[1641341812569,0.054287,46072.0,46067.0,0.32614469]
[1641341812768,0.22907742,46071.0,46067.0,0.32614469]
[1641341812970,0.05428692,46070.0,46067.0,0.32614469]
[1641341813170,0.054284,46069.0,46067.0,0.32614469]
[1641341813569,0.054284,46069.0,46067.0,0.66060672]
[1641341813970,0.049284,46069.0,46067.0,0.66060672]
[1641341814471,0.049284,46069.0,46067.0,0.32614469]
[1641341816720,0.10357049,46069.0,46067.0,0.32614469]
[1641341817119,0.049284,46069.0,46067.0,0.32614469]
[1641341817320,0.049284,46069.0,46068.0,0.62986836]
[1641341817526,0.15499797,46070.0,46068.0,0.62986836]
[1641341817527,0.04642197,46070.0,46068.0,0.62986836]
[1641341818424,0.04642197,46070.0,46067.0,0.32614469]
[1641341818623,0.10070497,46070.0,46067.0,0.32614469]
[1641341818823,0.10070855,46070.0,46067.0,0.32614469]
[1641341819668,0.054291,46069.0,46067.0,0.32614469]
[1641341820669,0.104291,46069.0,46067.0,0.32614469]
[1641341820869,0.054291,46069.0,46067.0,0.32614469]
[1641341821070,0.069291,46069.0,46067.0,0.32614469]
[1641341821874,0.015,46069.0,46068.0,1.30318683]
[1641341822074,0.015,46069.0,46068.0,1.08]
[1641341822471,0.00272197,46070.0,46068.0,1.08]
[1641341822922,0.19021891,46078.0,46077.0,0.27560527]
[1641341823123,0.29449391,46078.0,46077.0,0.27560527]
[1641341823324,0.29449391,46078.0,46069.0,0.054277]
[1641341823527,0.24021891,46078.0,46067.0,0.00121926]
[1641341824425,0.054276,46075.0,46071.0,0.31316008]
[1641341824825,0.05696394,46075.0,46071.0,0.31316008]
[1641341825024,0.05696394,46075.0,46072.0,0.31658797]
[1641341825228,0.05696394,46075.0,46074.0,0.4065421]
[1641341826870,0.10696394,46075.0,46074.0,0.4065421]
[1641341827071,0.10696394,46075.0,46074.0,0.22]
[1641341827273,1.30996394,46075.0,46074.0,0.22]
[1641341827671,1.45366394,46075.0,46074.0,0.22]
[1641341828771,0.30066394,46075.0,46074.0,0.22]
[1641341829171,0.30566394,46075.0,46074.0,0.22]
[1641341829773,1.45866394,46075.0,46074.0,0.22]
[1641341829973,0.30566394,46075.0,46074.0,0.22]
[1641341830443,0.20066394,46075.0,46074.0,0.22]
[1641341831137,0.20666394,46075.0,46074.0,0.22]
[1641341832441,0.20066394,46075.0,46074.0,0.22]
[1641341832641,0.197976,46075.0,46074.0,0.22]
[1641341834674,1.350976,46075.0,46074.0,0.22]
[1641341834873,1.450976,46075.0,46074.0,0.22]
[1641341837276,1.456976,46075.0,46074.0,0.22]
[1641341838321,1.450976,46075.0,46074.0,0.22]
[1641341839324,1.456976,46075.0,46074.0,0.22]
[1641341840525,1.450976,46075.0,46074.0,0.22]
[1641341841427,1.457393,46075.0,46074.0,0.18672924]
[1641341842472,1.451393,46075.0,46074.0,0.18672924]
[1641341843070,0.298393,46075.0,46074.0,0.18672924]
[1641341843272,1.357393,46075.0,46074.0,0.18672924]
[1641341843571,1.457393,46075.0,46074.0,0.18672924]
[1641341844372,1.451393,46075.0,46074.0,0.18672924]
[1641341845172,1.457393,46075.0,46074.0,0.18672924]
[1641341845419,0.304393,46075.0,46074.0,0.18672924]
[1641341845820,0.204393,46075.0,46074.0,0.18672924]
[1641341846020,0.304393,46075.0,46074.0,0.18672924]
[1641341846425,0.298393,46075.0,46074.0,0.18672924]
[1641341846621,0.254693,46075.0,46074.0,0.18672924]
[1641341847023,0.154693,46075.0,46074.0,0.18672924]
[1641341847223,0.160693,46075.0,46074.0,0.18672924]
[1641341847625,1.313693,46075.0,46074.0,0.18672924]
[1641341847824,0.160693,46075.0,46074.0,0.18672924]
[1641341848024,1.413693,46075.0,46067.0,0.24715868]
[1641341848224,0.10857135,46071.0,46067.0,0.24715868]
[1641341848425,0.054703,46071.0,46067.0,0.24715868]
[1641341848624,0.050417,46071.0,46067.0,0.24715868]
[1641341848824,0.00310536,46071.0,46067.0,0.24715868]
[1641341849672,0.04680536,46071.0,46067.0,0.24715868]
[1641341849877,0.054285,46069.0,46067.0,0.24715868]
[1641341850074,0.054702,46069.0,46067.0,0.24715868]
[1641341852675,0.054702,46069.0,46067.0,0.00121926]
[1641341852930,0.10899,46069.0,46064.0,8.945706]
[1641341853126,0.054289,46066.0,46064.0,8.945706]
[1641341853326,0.054706,46066.0,46064.0,8.945706]
[1641341854138,0.054706,46066.0,46065.0,1.34123793]
[1641341854333,0.054706,46066.0,46065.0,0.95123793]
[1641341855329,0.000417,46066.0,46065.0,0.95123793]
[1641341857973,0.000417,46066.0,46065.0,1.13123793]
[1641341860326,0.000417,46066.0,46065.0,1.52082246]
[1641341861029,0.000417,46066.0,46065.0,2.06082246]
[1641341861229,0.000417,46066.0,46065.0,2.18894146]
[1641341861427,0.0437,46076.0,46074.0,0.00126781]
[1641341861628,0.14021891,46078.0,46075.0,0.35061191]
[1641341861828,0.5,46077.0,46075.0,0.35061191]
[1641341862030,0.5,46077.0,46075.0,0.6703921]
[1641341862428,0.14021891,46078.0,46076.0,0.28850815]
[1641341862627,0.054272,46077.0,46076.0,0.28850815]
[1641341865071,0.054272,46077.0,46076.0,1.16850815]
[1641341865272,0.14021891,46078.0,46076.0,1.16850815]
[1641341866469,0.19449091,46078.0,46076.0,1.16850815]
[1641341866669,0.19449091,46078.0,46076.0,0.28850815]
[1641341867275,0.19449091,46078.0,46076.0,0.28950815]
[1641341867572,0.19449091,46078.0,46076.0,0.46950815]
[1641341868626,0.24876589,46078.0,46076.0,0.46850815]
[1641341869427,0.28676589,46078.0,46076.0,0.46850815]
[1641341871227,0.29246589,46078.0,46076.0,0.46850815]
[1641341871427,0.32446589,46078.0,46076.0,0.46850815]
[1641341871675,0.42446589,46078.0,46076.0,0.46850815]
[1641341872479,0.39246589,46078.0,46076.0,0.46850815]
[1641341873377,0.41446589,46078.0,46076.0,0.46850815]